bitfinex-derivatives/quotes_BTCF0:USTF0_20241010
["timestamp","ask_amount","ask_price","bid_price","bid_amount"]
[1728578110872,0.339175,60620.0,60619.0,1.45603877]
[1728578111057,0.08602733,60620.0,60619.0,1.45603877]
[1728578111261,0.0011755,60620.0,60619.0,1.45603877]
[1728578111466,0.0004,60620.0,60619.0,1.45603877]
[1728578111975,0.0004,60620.0,60619.0,0.36115877]
[1728578112859,0.082959,60620.0,60610.0,0.36327435]
[1728578113057,0.082569,60613.0,60610.0,0.08504635]
[1728578113263,0.1904,60611.0,60610.0,0.00247435]
[1728578113471,0.1904,60611.0,60610.0,0.08504735]
[1728578114263,0.272971,60611.0,60610.0,0.00247435]
[1728578114658,0.33219824,60611.0,60610.0,0.00647435]
[1728578115073,0.24962724,60611.0,60610.0,0.00647435]
[1728578115265,0.24962724,60611.0,60610.0,0.08904735]
[1728578115574,0.24962724,60611.0,60610.0,0.00647435]
[1728578115770,0.33219824,60611.0,60610.0,0.00647435]
[1728578115960,0.33219824,60611.0,60610.0,0.00947435]
[1728578116160,0.38288558,60611.0,60610.0,0.00947435]
[1728578116572,0.19288558,60611.0,60610.0,0.08904735]
[1728578116760,0.11031458,60611.0,60610.0,0.09104735]
[1728578117059,0.05108734,60611.0,60610.0,0.09104735]
[1728578117470,0.0004,60611.0,60610.0,0.09104735]
[1728578117967,0.0004,60611.0,60610.0,0.08704735]
[1728578118172,0.272971,60611.0,60610.0,0.00847435]
[1728578118967,0.0004,60611.0,60610.0,0.09104735]
[1728578119172,0.0004,60611.0,60610.0,0.09204735]
[1728578119372,0.37114633,60611.0,60610.0,0.00026962]
[1728578119573,0.83937533,60611.0,60604.0,0.19]
[1728578119771,0.40334833,60610.0,60608.0,0.082574]
[1728578120074,0.28817533,60609.0,60608.0,0.082574]
[1728578121275,0.31987533,60609.0,60608.0,0.082574]
[1728578121880,0.082579,60605.0,60604.0,0.009]
[1728578122174,0.83937533,60605.0,60596.0,0.082591]
[1728578122361,0.63339,60597.0,60596.0,0.082591]
[1728578122565,0.8367099,60597.0,60596.0,0.082591]
[1728578122760,0.92156533,60597.0,60596.0,0.07433191]
[1728578123071,0.8367099,60597.0,60596.0,0.07433191]
[1728578123267,0.6467099,60597.0,60596.0,0.07433191]
[1728578123464,0.6467099,60597.0,60596.0,0.06689872]
[1728578123972,0.6467099,60597.0,60596.0,0.07189872]
[1728578124177,0.48780554,60597.0,60596.0,0.07189872]
[1728578124371,0.48780554,60597.0,60596.0,0.26189872]
[1728578125071,0.48780554,60597.0,60596.0,0.23570885]
[1728578125471,0.12700554,60597.0,60596.0,0.23570885]
[1728578125672,0.12700554,60597.0,60596.0,0.42570885]
[1728578126065,0.11800554,60597.0,60596.0,1.56058885]
[1728578126271,0.0004,60605.0,60604.0,0.082581]
[1728578126475,0.0004,60605.0,60604.0,0.272581]
[1728578126772,0.0004,60611.0,60610.0,0.082573]
[1728578126974,0.0004,60611.0,60610.0,0.272573]
[1728578128474,0.0004,60611.0,60610.0,1.467533]
[1728578129365,0.0004,60615.0,60614.0,0.082567]
[1728578129682,0.0004,60625.0,60619.0,0.08256]
[1728578129880,0.0004,60625.0,60621.0,0.082558]
[1728578130180,0.0004,60625.0,60621.0,0.682558]
[1728578130480,0.0004,60625.0,60621.0,1.177438]
[1728578130974,0.3608,60631.0,60630.0,0.082545]
[1728578131184,0.3608,60631.0,60630.0,0.372545]
[1728578131577,0.3608,60631.0,60630.0,1.467345]
[1728578131876,0.3608,60638.0,60637.0,0.082536]
[1728578133575,0.42502278,60638.0,60637.0,0.082536]
[1728578133964,0.50755778,60638.0,60635.0,0.082538]
[1728578134170,0.05922278,60637.0,60635.0,0.082538]
[1728578134365,0.05922278,60637.0,60636.0,0.082537]
[1728578135873,0.14175878,60637.0,60636.0,0.082537]
[1728578136570,0.14575878,60637.0,60636.0,0.082537]
[1728578136773,0.14575878,60637.0,60630.0,0.003]
[1728578136774,0.06322278,60637.0,60630.0,0.003]
[1728578136981,0.06322278,60637.0,60630.0,0.085545]
[1728578136982,0.3608,60631.0,60630.0,0.085545]
[1728578137183,0.42002278,60631.0,60630.0,0.085545]
[1728578137773,0.05922278,60631.0,60630.0,0.085545]
[1728578138078,0.05922466,60632.0,60631.0,0.082544]
[1728578138277,0.42002466,60632.0,60631.0,0.082544]
[1728578138673,0.42002466,60632.0,60624.0,0.082952]
[1728578138873,0.082552,60626.0,60625.0,0.082552]
[1728578139077,0.14177666,60626.0,60625.0,0.082552]
[1728578139278,0.17497666,60626.0,60625.0,0.082552]
[1728578139672,0.082552,60625.0,60624.0,0.0004]
[1728578139880,0.14177666,60625.0,60624.0,0.0004]
[1728578140078,0.43177666,60625.0,60624.0,0.0004]
[1728578140279,0.082556,60622.0,60619.0,0.0004]
[1728578140481,0.92661666,60625.0,60614.0,0.0004]
[1728578140482,0.082566,60615.0,60614.0,0.0004]
[1728578140674,0.79299066,60615.0,60614.0,0.0004]
[1728578141189,1.28791066,60615.0,60614.0,0.0004]
[1728578141374,1.228686,60615.0,60614.0,0.0004]
[1728578143078,1.228686,60615.0,60614.0,0.0034]
[1728578143779,0.082574,60609.0,60607.0,0.04925559]
[1728578144089,0.3933,60608.0,60606.0,0.00247427]
[1728578144272,0.3933,60608.0,60607.0,0.082577]
[1728578145776,0.3612,60608.0,60607.0,0.372577]
[1728578146488,0.3612,60608.0,60607.0,0.087577]
[1728578146883,0.3622,60608.0,60607.0,0.094577]
[1728578147084,0.3622,60608.0,60607.0,0.43383259]
[1728578147280,0.3622,60608.0,60607.0,0.384577]
[1728578147885,0.3622,60608.0,60607.0,0.43391504]
[1728578148089,0.3622,60608.0,60607.0,0.384577]
[1728578148385,0.26304037,60608.0,60607.0,0.384577]
[1728578152284,0.26304037,60608.0,60607.0,0.46666965]
[1728578152482,0.26304037,60608.0,60607.0,0.49251815]
[1728578152781,0.26304037,60608.0,60607.0,0.49251831]
[1728578153186,0.26304037,60608.0,60607.0,0.49251827]
[1728578153388,0.26304037,60608.0,60607.0,0.41042562]
[1728578153586,0.26304037,60608.0,60607.0,0.4926895]
[1728578153782,0.26304037,60608.0,60607.0,0.41042562]
[1728578154288,0.0006,60608.0,60607.0,1.86622562]
[1728578154673,0.0004,60615.0,60614.0,0.082567]
[1728578154878,0.0004,60615.0,60614.0,0.272567]
[1728578155387,0.0004,60615.0,60614.0,0.48069126]
[1728578155685,0.0004,60615.0,60614.0,0.272567]
[1728578155874,0.0034,60615.0,60614.0,0.39840671]
[1728578156278,0.0044,60615.0,60614.0,0.39840671]
[1728578156490,0.0044,60615.0,60614.0,0.272567]
[1728578156789,0.0044,60615.0,60614.0,0.082567]
[1728578156989,0.5552,60615.0,60609.0,0.082573]
[1728578157179,0.5552,60615.0,60607.0,0.0004]
[1728578157180,0.082574,60609.0,60607.0,0.082976]
[1728578157481,0.3608,60610.0,60607.0,0.082976]
[1728578157482,0.3608,60610.0,60609.0,0.082574]
[1728578158086,0.443373,60610.0,60609.0,0.082574]
[1728578158678,0.3608,60610.0,60607.0,0.0004]
[1728578158880,0.082575,60608.0,60607.0,0.0004]
[1728578159083,0.272575,60608.0,60607.0,0.0004]
[1728578159993,0.272575,60608.0,60607.0,0.0054]
[1728578160300,0.272575,60608.0,60607.0,0.0154]
[1728578160484,0.082575,60608.0,60607.0,0.0154]
[1728578162297,0.082575,60608.0,60607.0,0.097977]
[1728578162590,0.083575,60608.0,60607.0,0.094977]
[1728578162787,0.001,60608.0,60607.0,0.094977]
[1728578162991,0.001,60608.0,60607.0,0.284977]
[1728578163491,0.001,60608.0,60607.0,0.41082953]
[1728578164087,0.001,60608.0,60607.0,0.284977]
[1728578164285,0.001,60608.0,60607.0,0.50955943]
[1728578164483,0.001,60608.0,60607.0,0.56400143]
[1728578165084,0.001,60608.0,60607.0,0.41082436]
[1728578165588,0.001,60608.0,60607.0,0.56400259]
[1728578166092,0.001,60608.0,60607.0,1.65900259]
[1728578166290,0.3612,60615.0,60608.0,0.082575]
[1728578166491,0.3612,60615.0,60614.0,0.37143685]
[1728578166793,0.3612,60615.0,60614.0,0.39841436]
[1728578167294,0.0004,60615.0,60614.0,0.55158777]
[1728578167498,0.0004,60615.0,60614.0,0.55157954]
[1728578167687,0.0004,60615.0,60614.0,1.64649954]
[1728578167885,0.0004,60615.0,60614.0,1.64649649]
[1728578168085,0.0014,60615.0,60614.0,1.64649649]
[1728578168687,0.003,60615.0,60614.0,1.64649649]
[1728578168888,0.003,60615.0,60614.0,1.64689649]
[1728578169898,0.003,60615.0,60614.0,1.66235567]
[1728578171292,0.003,60615.0,60614.0,0.56743567]
[1728578171501,0.003,60615.0,60614.0,0.28842618]
[1728578172300,0.003,60615.0,60614.0,0.082967]
[1728578172492,0.193,60615.0,60614.0,0.082967]
[1728578173088,0.003,60615.0,60614.0,0.272967]
[1728578173388,0.003,60615.0,60614.0,0.082967]
[1728578174393,0.085566,60615.0,60614.0,0.0004]
[1728578175599,0.085566,60615.0,60614.0,0.082967]
[1728578175898,0.003,60615.0,60614.0,0.272967]
[1728578178499,0.003,60615.0,60614.0,0.39881354]
[1728578179095,0.003,60615.0,60614.0,0.4977333]
[1728578179304,0.3608,60617.0,60616.0,0.082564]
[1728578180499,0.3658,60617.0,60616.0,0.30735534]
[1728578180699,0.005,60617.0,60616.0,0.22442008]
[1728578180904,0.005,60617.0,60616.0,0.37758429]
[1728578181302,0.005,60617.0,60616.0,0.32335972]
[1728578181501,0.005,60617.0,60616.0,0.30734781]
[1728578181697,0.005,60617.0,60616.0,0.20840817]
[1728578181900,0.5558,60617.0,60616.0,0.12584417]
[1728578182105,0.638363,60617.0,60616.0,0.12584417]
[1728578182306,0.638363,60617.0,60616.0,0.20829781]
[1728578182509,0.638363,60617.0,60614.0,0.082966]
[1728578182510,0.082565,60616.0,60614.0,0.082966]
[1728578182703,0.082565,60616.0,60615.0,0.12584308]
[1728578182704,0.443365,60616.0,60615.0,0.12584308]
[1728578183010,0.443365,60616.0,60615.0,0.16502759]
[1728578183601,0.445365,60616.0,60615.0,0.16502759]
[1728578183801,0.445365,60616.0,60615.0,0.12584578]
[1728578184210,0.445365,60616.0,60615.0,0.20830694]
[1728578184404,0.448365,60616.0,60615.0,0.20830694]
[1728578184806,0.082566,60615.0,60614.0,0.08286116]
[1728578185310,0.082566,60615.0,60614.0,0.0004]
[1728578186211,0.082566,60615.0,60614.0,0.082967]
[1728578186402,0.082566,60615.0,60614.0,0.0004]
[1728578186600,0.084566,60615.0,60614.0,0.0004]
[1728578187311,0.085566,60615.0,60614.0,0.0004]
[1728578187508,0.085566,60615.0,60612.0,0.08246116]
[1728578187814,0.08257,60612.0,60607.0,0.0004]
[1728578188006,0.633375,60608.0,60607.0,0.0004]
[1728578189101,0.633375,60608.0,60602.0,0.00247473]
[1728578189302,0.633782,60603.0,60602.0,0.00247473]
[1728578189510,0.633782,60603.0,60602.0,0.12833473]
[1728578189712,0.633782,60603.0,60602.0,0.22727735]
[1728578190119,0.082585,60601.0,60600.0,0.09894262]
[1728578190416,0.1904,60601.0,60596.0,0.18153362]
[1728578190614,0.63339,60597.0,60596.0,0.082591]
[1728578190906,0.63339,60597.0,60593.0,0.09894262]
[1728578191113,0.443394,60594.0,60593.0,0.18153862]
[1728578191418,0.443394,60594.0,60593.0,0.18147243]
[1728578191599,0.443394,60594.0,60593.0,0.082596]
[1728578192211,0.443394,60594.0,60584.0,0.11543836]
[1728578192406,0.462601,60589.0,60588.0,0.15320603]
[1728578192611,0.082602,60588.0,60587.0,0.083004]
[1728578192915,0.082602,60588.0,60587.0,0.23621338]
[1728578193109,0.082602,60588.0,60587.0,0.083004]
[1728578193303,0.082602,60588.0,60587.0,0.09923721]
[1728578193511,0.0412774,60588.0,60587.0,0.0004]
[1728578193706,0.0412774,60588.0,60587.0,0.09920487]
[1728578194102,0.0412774,60588.0,60587.0,0.0004]
[1728578194622,1.1364374,60588.0,60587.0,0.0004]
[1728578194814,1.1364374,60588.0,60578.0,0.0004]
[1728578194815,0.19,60586.0,60578.0,0.0004]
[1728578195020,0.3608,60579.0,60578.0,0.0004]
[1728578195821,0.38556102,60579.0,60578.0,0.0004]
[1728578196004,0.38556102,60579.0,60575.0,0.00247619]
[1728578196005,1.43028602,60579.0,60575.0,0.00247619]
[1728578196211,1.43028602,60579.0,60569.0,0.0004]
[1728578196212,0.273019,60576.0,60569.0,0.0004]
[1728578196510,0.273019,60576.0,60575.0,0.08262]
[1728578196511,0.0004,60576.0,60575.0,0.08262]
[1728578196713,0.1904,60576.0,60575.0,0.08262]
[1728578197519,0.273019,60576.0,60575.0,0.08262]
[1728578197821,0.08262,60575.0,60571.0,0.082625]
[1728578198016,0.08262,60575.0,60569.0,0.0004]
[1728578198209,0.08262,60575.0,60572.0,0.082624]
[1728578198725,0.57786,60575.0,60569.0,0.0004]
[1728578199020,0.082627,60570.0,60569.0,0.0004]
[1728578199320,0.633427,60570.0,60569.0,0.0004]
[1728578199520,0.443827,60570.0,60569.0,0.0004]
[1728578200121,0.3612,60570.0,60569.0,0.083028]
[1728578201424,0.443827,60570.0,60569.0,0.083028]
[1728578202127,0.443827,60570.0,60569.0,0.0004]
[1728578202614,0.443827,60570.0,60569.0,0.0044]
[1728578203219,0.443827,60570.0,60569.0,0.0104]
[1728578203615,0.443827,60570.0,60569.0,0.0064]
[1728578203824,0.443827,60570.0,60569.0,0.0094]
[1728578204221,0.443827,60570.0,60569.0,0.0074]
[1728578205018,0.443827,60570.0,60569.0,0.1332822]
[1728578205920,0.443827,60570.0,60569.0,0.13329539]
[1728578206811,0.3612,60570.0,60569.0,0.21492339]
[1728578207022,0.3612,60570.0,60569.0,0.21192339]
[1728578207218,0.3612,60570.0,60569.0,0.21392339]
[1728578207425,0.3612,60570.0,60569.0,0.36713723]
[1728578207619,0.3612,60570.0,60569.0,0.36413723]
[1728578207820,0.3612,60570.0,60569.0,0.36813723]
[1728578208416,0.3612,60570.0,60569.0,0.089028]
[1728578208417,0.0004,60570.0,60569.0,0.089028]
[1728578208610,0.0004,60576.0,60575.0,0.08262]
[1728578208825,0.0004,60576.0,60575.0,0.27262]
[1728578209320,0.30294602,60579.0,60578.0,0.082616]
[1728578210023,0.30294602,60579.0,60578.0,0.13189771]
[1728578210416,0.30294602,60579.0,60578.0,0.32189771]
[1728578210724,0.30294602,60579.0,60578.0,0.33831612]
[1728578210923,0.30294602,60579.0,60578.0,0.272616]
[1728578211319,0.30394602,60579.0,60578.0,0.281616]
[1728578211521,0.30394602,60579.0,60578.0,0.34731612]
[1728578212221,0.30394602,60579.0,60578.0,0.35036565]
[1728578212422,0.30394602,60579.0,60578.0,0.284616]
[1728578213220,0.30494602,60579.0,60578.0,0.294616]
[1728578213726,0.30494602,60579.0,60578.0,0.42049838]
[1728578213919,0.30494602,60579.0,60578.0,0.294616]
[1728578214424,0.3608,60583.0,60582.0,0.082611]
[1728578214649,0.3608,60583.0,60582.0,0.272611]
[1728578215019,0.3608,60583.0,60582.0,0.39848109]
[1728578215330,0.3608,60583.0,60582.0,0.272611]
[1728578215526,0.3608,60583.0,60582.0,0.39848733]
[1728578215921,0.00287643,60588.0,60587.0,0.082604]
[1728578216230,0.0004,60588.0,60587.0,0.272604]
[1728578216432,0.3608,60593.0,60587.0,0.46908092]
[1728578216634,0.3608,60593.0,60589.0,0.09880204]
[1728578216928,0.443396,60593.0,60591.0,0.082598]
[1728578217131,0.443396,60593.0,60590.0,0.22467462]
[1728578217330,0.443396,60593.0,60592.0,0.082597]
[1728578217527,0.3608,60593.0,60592.0,0.20846958]
[1728578217827,0.3608,60593.0,60592.0,0.24006958]
[1728578218529,0.3608,60600.0,60592.0,0.24006958]
[1728578218728,0.3608,60600.0,60599.0,0.082587]
[1728578218934,0.3608,60600.0,60599.0,0.20845958]
[1728578220219,0.3658,60600.0,60599.0,0.3083097]
[1728578220424,0.3658,60600.0,60599.0,0.73629958]
[1728578220425,0.005,60600.0,60599.0,0.73629958]
[1728578220930,0.005,60600.0,60599.0,0.36144143]
[1728578221232,0.087586,60600.0,60599.0,0.17645247]
[1728578221431,0.087586,60600.0,60599.0,0.27527823]
[1728578221632,0.087586,60600.0,60599.0,0.27627823]
[1728578221633,0.098586,60600.0,60599.0,0.27627823]
[1728578221929,0.016,60600.0,60599.0,0.27627823]
[1728578223033,0.016,60600.0,60599.0,0.46627823]
[1728578223230,0.016,60600.0,60599.0,0.36745247]
[1728578223733,0.016,60600.0,60599.0,0.05157989]
[1728578225827,0.016,60600.0,60599.0,0.24157989]
[1728578226637,0.016,60600.0,60599.0,0.05157989]
[1728578230130,0.016,60600.0,60599.0,0.002]
[1728578230329,0.082598,60592.0,60591.0,0.082598]
[1728578230634,0.443398,60592.0,60591.0,0.082598]
[1728578231240,0.3608,60592.0,60591.0,0.082598]
[1728578231735,0.3608,60592.0,60591.0,0.20846132]
[1728578231937,0.3648,60592.0,60591.0,0.20846595]
[1728578232237,0.3648,60592.0,60591.0,0.39846595]
[1728578232238,0.004,60592.0,60591.0,0.39846595]
[1728578232836,0.004,60592.0,60591.0,0.55165794]
[1728578233027,0.004,60592.0,60591.0,0.39846595]
[1728578233226,0.004,60592.0,60591.0,0.89358595]
[1728578233430,0.0004,60601.0,60600.0,0.082586]
[1728578233630,0.0004,60601.0,60600.0,0.272586]
[1728578233933,0.082985,60601.0,60600.0,0.272586]
[1728578234126,0.082985,60601.0,60600.0,0.082586]
[1728578234633,0.0004,60601.0,60600.0,0.082586]
[1728578234832,0.0084,60601.0,60600.0,0.083586]
[1728578235039,0.090985,60601.0,60600.0,0.001]
[1728578235429,0.101985,60601.0,60600.0,0.084586]
[1728578235633,0.101985,60601.0,60600.0,0.08427702]
[1728578235835,0.101985,60601.0,60600.0,0.002]
[1728578236341,0.101985,60601.0,60600.0,0.16686302]
[1728578236534,0.101985,60601.0,60600.0,0.084586]
[1728578237440,0.101985,60601.0,60600.0,0.16686302]
[1728578237631,0.101985,60601.0,60600.0,0.084586]
[1728578237831,0.101985,60601.0,60600.0,0.29272247]
[1728578238038,0.101985,60601.0,60600.0,0.084586]
[1728578238340,0.101985,60601.0,60600.0,0.29272393]
[1728578238542,0.06066494,60601.0,60600.0,0.29312393]
[1728578238938,0.42146494,60601.0,60600.0,0.29312393]
[1728578239446,0.42146494,60601.0,60600.0,0.21084691]
[1728578240146,0.42146494,60601.0,60600.0,0.29323399]
[1728578240448,0.42146494,60601.0,60600.0,0.084986]
[1728578241749,0.42146494,60601.0,60600.0,0.21085028]
[1728578241947,0.42146494,60601.0,60600.0,0.29327511]
[1728578242139,0.42146494,60601.0,60600.0,0.21085028]
[1728578245942,0.42146494,60601.0,60600.0,0.30976007]
[1728578246145,0.42146494,60601.0,60600.0,0.084986]
[1728578246755,0.3718,60601.0,60600.0,0.084986]
[1728578247143,0.454385,60601.0,60600.0,0.084986]
[1728578247346,0.454385,60601.0,60600.0,0.0024]
[1728578247545,0.454385,60601.0,60600.0,0.084986]
[1728578249143,0.454385,60601.0,60600.0,0.0024]
[1728578249347,0.454385,60601.0,60591.0,0.19]
[1728578249348,0.082597,60592.0,60591.0,0.082595]
[1728578249550,0.082594,60595.0,60594.0,0.082593]
[1728578251950,0.082598,60592.0,60591.0,0.082598]
[1728578252168,0.085998,60592.0,60591.0,0.082598]
[1728578252970,0.082998,60592.0,60591.0,0.082598]
[1728578253371,0.0004,60592.0,60591.0,0.272598]
[1728578254268,0.0004,60592.0,60591.0,0.4975108]
[1728578254576,0.006,60595.0,60591.0,0.4975108]
[1728578254577,0.006,60595.0,60594.0,0.082594]
[1728578254886,0.006,60595.0,60594.0,0.55168679]
[1728578255572,0.006,60595.0,60594.0,0.55166425]
[1728578256165,0.3608,60596.0,60595.0,0.082593]
[1728578256368,0.3608,60596.0,60595.0,0.36166325]
[1728578256568,0.633392,60596.0,60595.0,0.12586777]
[1728578257385,0.666592,60596.0,60595.0,0.12586777]
[1728578257680,0.666592,60596.0,60591.0,0.0004]
[1728578257681,0.082594,60594.0,60593.0,0.08252623]
[1728578257875,0.7104,60594.0,60589.0,0.09902791]
[1728578258068,0.082602,60588.0,60587.0,0.08540219]
[1728578258271,0.443402,60588.0,60587.0,0.0004]
[1728578258470,0.443402,60588.0,60587.0,0.06640351]
[1728578259277,0.443402,60588.0,60587.0,0.0004]
[1728578259880,0.443402,60588.0,60587.0,0.083004]
[1728578260679,0.3608,60588.0,60587.0,0.083004]
[1728578261686,0.3608,60588.0,60587.0,0.084004]
[1728578263282,0.3608,60588.0,60587.0,0.087004]
[1728578264679,0.082602,60589.0,60588.0,0.082602]
[1728578266088,0.082602,60589.0,60588.0,0.084602]
[1728578266278,0.3608,60592.0,60591.0,0.082598]
[1728578266279,0.443398,60592.0,60591.0,0.082598]
[1728578266479,0.3608,60592.0,60591.0,0.272598]
[1728578266680,0.0004,60594.0,60593.0,0.082596]
[1728578266982,0.0004,60594.0,60593.0,0.18162391]
[1728578267775,0.00247581,60602.0,60601.0,0.082585]
[1728578267982,0.00247581,60602.0,60601.0,0.272585]
[1728578269580,0.00247581,60602.0,60601.0,0.273585]
[1728578269885,0.0004,60603.0,60602.0,0.082583]
[1728578270083,0.0004,60603.0,60602.0,0.150983]
[1728578270576,0.3608,60612.0,60611.0,0.082571]
[1728578272986,0.3608,60615.0,60612.0,0.08257]
[1728578273190,0.5512,60625.0,60612.0,0.27257]
[1728578273395,0.082554,60624.0,60619.0,0.08256]
[1728578273692,0.082554,60624.0,60619.0,0.27256]
[1728578274679,0.0004,60625.0,60619.0,0.27256]
[1728578275291,0.082952,60625.0,60619.0,0.27256]
[1728578275887,0.082554,60624.0,60619.0,0.27256]
[1728578276184,0.082554,60624.0,60619.0,0.33845993]
[1728578277189,0.272556,60622.0,60619.0,0.08256]
[1728578277384,0.0084,60620.0,60619.0,0.001]
[1728578277589,0.090959,60620.0,60619.0,0.001]
[1728578278291,0.090959,60620.0,60619.0,0.05022351]
[1728578278693,0.090959,60620.0,60619.0,0.001]
[1728578278901,0.090959,60620.0,60619.0,0.05022351]
[1728578279295,0.451759,60620.0,60619.0,0.001]
[1728578280793,0.451759,60620.0,60619.0,0.08356]
[1728578283605,0.451759,60620.0,60619.0,0.001]
[1728578284190,0.56166417,60620.0,60619.0,0.001]
[1728578284697,0.56166422,60620.0,60619.0,0.001]
[1728578285298,0.74106167,60620.0,60619.0,0.001]
[1728578285600,0.56166422,60620.0,60619.0,0.001]
[1728578285809,0.082568,60613.0,60612.0,0.082968]
[1728578285995,0.13325081,60613.0,60612.0,0.082968]
[1728578288006,0.05068281,60613.0,60612.0,0.083968]
[1728578288200,0.05068281,60613.0,60612.0,0.0014]
[1728578288395,0.13425081,60613.0,60612.0,0.08397]
[1728578289402,0.31367275,60613.0,60612.0,0.08397]
[1728578289607,0.1934743,60613.0,60612.0,0.08397]
[1728578289795,0.1109063,60613.0,60612.0,0.08397]
[1728578289996,0.05168281,60613.0,60612.0,0.08397]
[1728578290310,0.1109063,60613.0,60612.0,0.08397]
[1728578290907,0.1934743,60613.0,60612.0,0.08397]
[1728578291098,0.13425081,60613.0,60612.0,0.0014]
[1728578291300,0.083568,60613.0,60612.0,0.0014]
[1728578291607,0.082578,60606.0,60603.0,0.05169829]
[1728578291818,0.082587,60599.0,60597.0,0.04922351]
[1728578292003,0.5454781,60598.0,60596.0,0.04922351]
[1728578292304,0.082592,60596.0,60595.0,0.082593]
[1728578292509,0.082592,60596.0,60595.0,0.13181651]
[1728578292700,0.082592,60596.0,60595.0,0.04922351]
[1728578292898,0.082593,60595.0,60594.0,0.13181751]
[1728578293100,0.19,60595.0,60594.0,0.13181751]
[1728578293315,0.082592,60596.0,60593.0,0.0004]
[1728578293507,0.0365,60597.0,60596.0,0.082592]
[1728578293710,0.4389071,60598.0,60597.0,0.08259]
[1728578294008,0.4380671,60598.0,60597.0,0.08259]
[1728578295011,0.479389,60598.0,60597.0,0.08259]
[1728578295808,0.669389,60598.0,60595.0,0.04930422]
[1728578296109,0.083592,60596.0,60595.0,0.096593]
[1728578297007,0.082592,60596.0,60595.0,0.082593]
[1728578297315,0.082594,60594.0,60593.0,0.0004]
[1728578297511,0.082594,60594.0,60593.0,0.082996]
[1728578297709,0.08259,60597.0,60596.0,0.08259]
[1728578300203,0.44339,60597.0,60596.0,0.08459]
[1728578300813,0.3608,60597.0,60596.0,0.08459]
[1728578301013,0.0004,60598.0,60597.0,0.08259]
[1728578301313,0.0004,60598.0,60597.0,0.27259]
[1728578303107,0.0004,60604.0,60597.0,0.63339]
[1728578303312,0.0004,60604.0,60603.0,0.272582]
[1728578304613,0.3608,60617.0,60611.0,0.082571]
[1728578305205,0.082564,60616.0,60611.0,0.082571]
[1728578306019,0.19247613,60612.0,60611.0,0.082571]
[1728578306217,0.19247613,60612.0,60608.0,0.082573]
[1728578306218,0.082574,60609.0,60608.0,0.082573]
[1728578306423,0.272574,60609.0,60608.0,0.082573]
[1728578306911,0.082577,60607.0,60606.0,0.14847793]
[1728578307112,0.3608,60607.0,60604.0,0.06589993]
[1728578307308,0.272579,60605.0,60604.0,0.082581]
[1728578308509,0.19,60605.0,60604.0,0.082581]
[1728578308711,0.082577,60607.0,60606.0,0.082577]
[1728578308913,0.443377,60607.0,60606.0,0.082577]
[1728578309622,0.443377,60607.0,60603.0,0.16421868]
[1728578309623,0.082581,60604.0,60603.0,0.16421868]
[1728578310020,0.082581,60604.0,60603.0,0.082982]
[1728578310223,0.082581,60604.0,60603.0,0.0004]
[1728578310921,0.082581,60604.0,60603.0,0.082982]
[1728578311128,0.082581,60604.0,60603.0,0.1323355]
[1728578311314,0.082581,60604.0,60603.0,0.1383355]
[1728578312109,0.082581,60604.0,60603.0,0.1323355]
[1728578312316,0.082581,60604.0,60603.0,0.086982]
[1728578312824,0.001,60605.0,60604.0,0.082581]
[1728578313024,0.001,60605.0,60604.0,0.13194899]
[1728578313326,0.001,60605.0,60604.0,0.082581]
[1728578313327,0.444379,60605.0,60604.0,0.082581]
[1728578313531,0.634379,60605.0,60604.0,0.082581]
[1728578314034,0.3618,60605.0,60604.0,0.082581]
[1728578314920,0.001,60605.0,60604.0,0.272581]
[1728578315124,0.08504713,60612.0,60611.0,0.082571]
[1728578315629,0.00247613,60612.0,60611.0,0.082571]
[1728578316019,0.3608,60613.0,60612.0,0.08257]
[1728578316216,0.3608,60613.0,60612.0,0.27257]
[1728578316620,0.3608,60613.0,60612.0,0.08257]
[1728578317021,0.443368,60613.0,60612.0,0.08257]
[1728578317929,0.3608,60613.0,60612.0,0.08257]
[1728578318231,0.3608,60613.0,60612.0,0.28809318]
[1728578319033,0.3608,60613.0,60612.0,0.09809318]
[1728578319225,0.443368,60613.0,60612.0,0.09809318]
[1728578320534,0.633368,60613.0,60605.0,0.19]
[1728578320734,0.082576,60609.0,60608.0,0.082575]
[1728578321927,0.082576,60609.0,60608.0,0.1319544]
[1728578322334,0.0383,60611.0,60610.0,0.082573]
[1728578322630,0.120871,60611.0,60610.0,0.082573]
[1728578323830,0.0383,60611.0,60610.0,0.082573]
[1728578324731,0.120871,60611.0,60610.0,0.082573]
[1728578325930,0.120871,60611.0,60610.0,0.084573]
[1728578327029,0.120871,60611.0,60610.0,0.002]
[1728578328936,0.220871,60611.0,60610.0,0.002]
[1728578332433,0.082574,60609.0,60603.0,0.0004]
[1728578332635,0.633381,60604.0,60603.0,0.0004]
[1728578332830,0.743381,60604.0,60603.0,0.0004]
[1728578333032,0.082587,60599.0,60598.0,0.082588]
[1728578333236,0.272987,60599.0,60598.0,0.082588]
[1728578333437,0.272987,60599.0,60598.0,0.20845509]
[1728578334726,0.272987,60599.0,60598.0,0.21745509]
[1728578335337,0.272987,60599.0,60598.0,0.21745454]
[1728578335837,0.272987,60599.0,60598.0,0.21745494]
[1728578336037,0.272987,60599.0,60598.0,0.091588]
[1728578336038,0.28911091,60599.0,60598.0,0.091588]
[1728578337038,0.64991091,60599.0,60598.0,0.009]
[1728578337335,0.65091091,60599.0,60598.0,0.015]
[1728578337930,0.65091091,60599.0,60598.0,0.097589]
[1728578338141,0.65091091,60599.0,60598.0,0.015]
[1728578338343,0.75091091,60599.0,60598.0,0.015]
[1728578340346,0.75091091,60599.0,60598.0,0.097589]
[1728578340744,0.0014,60599.0,60598.0,0.097589]
[1728578340941,0.0014,60599.0,60598.0,0.134789]
[1728578343336,0.083987,60599.0,60598.0,0.134789]